[Event "XIII Mediterranean Championship 2023"]
[Site "Castell-Platja d Aro"]
[Date "2023.11.09"]
[Round "7.2"]
[White "Garriga Cazorla, Pere"]
[Black "Gines Esteo, Pedro Antonio"]
[Result "0-1"]
[ECO "A13"]
[WhiteElo "2459"]
[BlackElo "2490"]
[Annotator "RC"]
[PlyCount "148"]
[EventDate "2023.10.26"]
[EventType "swiss"]
[EventCountry "ESP"]
[SourceTitle "playchess.com"]
[Source "ChessBase"]
[SourceQuality "1"]
[TimeControl "5400+30"]

1. Nf3 {[%emt 0:00:06]} d5 {[%emt 0:08:48]} 2. g3 {[%emt 0:00:08]} b6 {[%emt 0:03:24]} 3. Bg2 {[%emt 0:03:16]} Bb7 {[%emt 0:00:05]} 4. c4 {[%emt 0:02:10]} dxc4 {[%emt 0:00:40]} 5. Qa4+ {[%emt 0:00:33]} Nd7 {[%emt 0:00:13]} 6. Qxc4 {[%emt 0:00:09]} e6 {[%emt 0:00:20]} 7. O-O {[%emt 0:02:27]} c5 {[%emt 0:02:52]} 8. Nc3 {[%emt 0:13:49]} Ngf6 {[%emt 0:01:11]} 9. e4 {[%emt 0:02:44]} Be7 {[%emt 0:04:02]} 10. d4 {[%emt 0:15:48]} Nxe4 {[%emt 0:21:30]} 11. d5 {[%emt 0:02:38]} Nd6 {[%emt 0:03:46]} 12. Qg4 {[%emt 0:03:20]} h5 {[%emt 0:05:18]} 13. Qa4 {[%emt 0:01:00]} b5 {[%emt 0:10:50]} 14. Nxb5 {[%emt 0:05:29]} Bxd5 {[%emt 0:00:30]} 15. Nc3 {[%emt 0:07:28]} O-O {[%emt 0:01:28]} 16. Rd1 {[%emt 0:03:31]} Nb6 {[%emt 0:02:39]} 17. Qc2 {[%emt 0:01:15]} Nf5 {[%emt 0:02:52]} 18. Nxd5 {[%emt 0:02:16]} Nxd5 {[%emt 0:00:05]} 19. Bh3 {[%emt 0:01:17]} Nd4 {[%emt 0:06:56]} 20. Nxd4 {[%emt 0:01:26]} cxd4 {[%emt 0:00:01]} 21. Rxd4 {[%emt 0:02:01]} Rc8 {[%emt 0:00:55]} 22. Qe2 {[%emt 0:01:03]} Bf6 {[%emt 0:04:05]} 23. Rd1 {[%emt 0:01:35]} Qb6 {[%emt 0:01:11]} 24. Rxd5 {[%emt 0:08:26]} exd5 {[%emt 0:00:49]} 25. Bxc8 {[%emt 0:00:07]} Rxc8 {[%emt 0:00:02]} 26. Be3 {[%emt 0:00:59]} d4 {[%emt 0:04:04]} 27. Bf4 {[%emt 0:02:13]} h4 {[%emt 0:08:02]} 28. Rd1 {[%emt 0:01:42]} Qa5 {[%emt 0:01:52]} 29. b3 {[%emt 0:05:02]} Qd5 {[%emt 0:00:36]} 30. gxh4 {[%emt 0:00:46]} Rc3 {[%emt 0:03:13]} 31. Bg3 {[%emt 0:03:33]} d3 {[%emt 0:00:55]} 32. Qe8+ {[%emt 0:01:29]} Kh7 {[%emt 0:00:01]} 33. Qe3 {[%emt 0:00:53]} Bd4 {[%emt 0:02:43]} 34. Qf4 {[%emt 0:00:24]} Rc2 {[%emt 0:00:28]} 35. h5 {[%emt 0:00:53]} Re2 {[%emt 0:00:25]} 36. Qg4 {[%emt 0:03:26]} Re4 {[%emt 0:00:21]} 37. Qh3 {[%emt 0:00:19]} d2 {[%emt 0:00:47]} 38. Qf1 {[%emt 0:00:03]} Bb6 {[%emt 0:00:39]} 39. h4 {[%emt 0:00:53]} f5 {[%emt 0:00:20]} 40. b4 {[%emt 0:01:28]} f4 {[%emt 0:00:30]} 41. Bh2 {[%emt 0:00:18]} f3 {[%emt 0:00:25]} 42. Bg3 {[%emt 0:00:14]} Re2 {[%emt 0:00:25]} 43. Kh2 {[%emt 0:00:21]} a6 {[%emt 0:00:35]} 44. h6 {[%emt 0:00:28]} gxh6 {[%emt 0:00:34]} 45. a4 {[%emt 0:00:26]} h5 {[%emt 0:00:58]} 46. b5 {[%emt 0:00:24]} axb5 {[%emt 0:00:30]} 47. axb5 {[%emt 0:00:04]} Kg6 {[%emt 0:00:32]} 48. Qg1 {[%emt 0:01:06]} Kf7 {[%emt 0:00:13]} 49. Qf1 {[%emt 0:00:17]} Qe6 {[%emt 0:00:47]} 50. Qh3 {[%emt 0:00:42]} Be3 {[%emt 0:00:22]} 51. Qxe6+ {[%emt 0:00:39]} Kxe6 {[%emt 0:00:01]} 52. b6 {[%emt 0:00:04]} Bxb6 {[%emt 0:00:43]} 53. Bf4 {[%emt 0:00:21]} Bxf2 {[%emt 0:00:53]} 54. Rxd2 {[%emt 0:00:18]} Kf5 {[%emt 0:00:30]} 55. Rxe2 {[%emt 0:00:41]} fxe2 {[%emt 0:00:02]} 56. Bd2 {[%emt 0:00:03]} Ke4 {[%emt 0:00:29]} 57. Kg2 {[%emt 0:00:01]} Kd3 {[%emt 0:00:35]} 58. Bb4 {[%emt 0:00:10]} Bxh4 {[%emt 0:00:54]} 59. Kf3 {[%emt 0:00:02]} Bg5 {[%emt 0:00:19]} 60. Be1 {[%emt 0:00:06]} Be7 {[%emt 0:00:03]} 61. Ba5 {[%emt 0:00:22]} Bg5 {[%emt 0:00:01]} 62. Be1 {[%emt 0:00:05]} Bd2 {[%emt 0:01:38]} 63. Bg3 {[%emt 0:00:39]} Bc3 {[%emt 0:00:12]} 64. Bf2 {[%emt 0:00:56]} Kd2 {[%emt 0:00:46]} 65. Bh4 {[%emt 0:00:21]} Kd1 {[%emt 0:00:17]} 66. Bg3 {[%emt 0:00:15]} Be5 {[%emt 0:00:36]} 67. Bh4 {[%emt 0:00:23]} Bf6 {[%emt 0:00:18]} 68. Bf2 {[%emt 0:00:07]} Bc3 {[%emt 0:00:24]} 69. Bg3 {[%emt 0:00:29]} Be1 {[%emt 0:00:08]} 70. Bd6 {[%emt 0:00:53]} h4 {[%emt 0:00:09]} 71. Be7 {[%emt 0:00:53]} h3 {[%emt 0:00:17]} 72. Bd6 {[%emt 0:00:14]} Bh4 {[%emt 0:00:23]} 73. Bb4 {[%emt 0:00:07]} e1=Q {[%emt 0:00:43]} 74. Bxe1 {[%emt 0:01:08]} Kxe1 {[%emt 0:00:24]} 0-1

[Event "XIII Mediterranean Championship 2023"]
[Site "Castell-Platja d Aro"]
[Date "2023.11.09"]
[Round "7.3"]
[White "Rojano Alfonso, Carlos"]
[Black "Alexakis, Dimitris"]
[Result "1/2-1/2"]
[ECO "B47"]
[WhiteElo "2207"]
[BlackElo "2458"]
[Annotator "RC"]
[PlyCount "150"]
[EventDate "2023.10.26"]
[EventType "swiss"]
[EventCountry "ESP"]
[SourceTitle "playchess.com"]
[Source "ChessBase"]
[SourceQuality "1"]
[TimeControl "5400+30"]

1. e4 {[%emt 0:02:11]} c5 {[%emt 0:00:58]} 2. Nf3 {[%emt 0:00:09]} Nc6 {[%emt 0:04:21]} 3. d4 {[%emt 0:00:06]} cxd4 {[%emt 0:00:06]} 4. Nxd4 {[%emt 0:00:04]} e6 {[%emt 0:01:11]} 5. Nc3 {[%emt 0:00:31]} Qc7 {[%emt 0:00:17]} 6. Nxc6 {[%emt 0:04:13]} bxc6 {[%emt 0:02:03]} 7. Bd3 {[%emt 0:01:18]} Nf6 {[%emt 0:00:21]} 8. Qe2 {[%emt 0:00:06]} e5 {[%emt 0:04:51]} 9. O-O {[%emt 0:00:18]} h5 {[%emt 0:00:52]} 10. Kh1 {[%emt 0:02:47]} h4 {[%emt 0:03:56]} 11. Bg5 {[%emt 0:06:16]} Rb8 {[%emt 0:17:25]} 12. Bc4 {[%emt 0:06:11]} Be7 {[%emt 0:17:39]} 13. Rad1 {[%emt 0:15:15]} Rxb2 {[%emt 0:15:15]} 14. Bb3 {[%emt 0:06:12]} Qa5 {[%emt 0:02:35]} 15. Qf3 {[%emt 0:07:00]} d6 {[%emt 0:00:24]} 16. Bxf6 {[%emt 0:01:30]} gxf6 {[%emt 0:00:09]} 17. Na4 {[%emt 0:01:47]} Rxb3 {[%emt 0:03:51]} 18. axb3 {[%emt 0:01:27]} h3 {[%emt 0:03:32]} 19. g3 {[%emt 0:02:24]} Be6 {[%emt 0:02:38]} 20. c4 {[%emt 0:01:25]} Qb4 {[%emt 0:03:06]} 21. Qe3 {[%emt 0:04:46]} Qb7 {[%emt 0:01:39]} 22. Kg1 {[%emt 0:10:05]} O-O {[%emt 0:03:53]} 23. f4 {[%emt 0:02:46]} Bg4 {[%emt 0:00:59]} 24. Rd3 {[%emt 0:00:46]} Kg7 {[%emt 0:01:10]} 25. Ra1 {[%emt 0:03:25]} a5 {[%emt 0:01:44]} 26. Nb2 {[%emt 0:02:54]} Qc7 {[%emt 0:03:53]} 27. Nd1 {[%emt 0:00:54]} d5 {[%emt 0:03:05]} 28. Nf2 {[%emt 0:03:15]} d4 {[%emt 0:00:27]} 29. Qe1 {[%emt 0:00:33]} Bb4 {[%emt 0:00:13]} 30. Qf1 {[%emt 0:00:09]} f5 {[%emt 0:00:04]} 31. Nxg4 {[%emt 0:01:01]} fxg4 {[%emt 0:00:07]} 32. Qe2 {[%emt 0:00:19]} Qd7 {[%emt 0:03:06]} 33. f5 {[%emt 0:00:17]} Rh8 {[%emt 0:00:02]} 34. Qxg4+ {[%emt 0:00:26]} Kf6 {[%emt 0:00:04]} 35. Qe2 {[%emt 0:00:52]} Qd8 {[%emt 0:00:15]} 36. g4 {[%emt 0:00:50]} Qg8 {[%emt 0:00:25]} 37. Rg3 {[%emt 0:03:19]} Qg5 {[%emt 0:00:04]} 38. Qf3 {[%emt 0:00:20]} Rh4 {[%emt 0:01:41]} 39. Kh1 {[%emt 0:01:41]} Bd2 {[%emt 0:00:22]} 40. b4 {[%emt 0:05:36]} axb4 {[%emt 0:00:22]} 41. Ra6 {[%emt 0:00:03]} Qe3 {[%emt 0:00:38]} 42. g5+ {[%emt 0:01:04]} Ke7 {[%emt 0:00:01]} 43. f6+ {[%emt 0:01:20]} Kd6 {[%emt 0:00:04]} 44. g6 {[%emt 0:01:12]} Qxf3+ {[%emt 0:02:06]} 45. Rxf3 {[%emt 0:00:05]} Rxe4 {[%emt 0:00:08]} 46. Ra1 {[%emt 0:00:40]} fxg6 {[%emt 0:00:24]} 47. f7 {[%emt 0:00:16]} Bh6 {[%emt 0:00:01]} 48. Rxh3 {[%emt 0:00:37]} Rf4 {[%emt 0:00:30]} 49. Rxh6 {[%emt 0:00:30]} Rxf7 {[%emt 0:00:36]} 50. Rxg6+ {[%emt 0:00:40]} Kc5 {[%emt 0:00:05]} 51. Ra5+ {[%emt 0:00:38]} Kxc4 {[%emt 0:00:34]} 52. Rxc6+ {[%emt 0:00:06]} Kd3 {[%emt 0:00:11]} 53. Rxe5 {[%emt 0:00:13]} Rb7 {[%emt 0:00:27]} 54. Re1 {[%emt 0:03:45]} b3 {[%emt 0:00:10]} 55. Rcc1 {[%emt 0:00:20]} b2 {[%emt 0:00:21]} 56. Rcd1+ {[%emt 0:00:33]} Kc3 {[%emt 0:00:15]} 57. h3 {[%emt 0:00:45]} d3 {[%emt 0:00:35]} 58. Kg2 {[%emt 0:00:17]} d2 {[%emt 0:01:42]} 59. Rf1 {[%emt 0:00:09]} Rg7+ {[%emt 0:01:04]} 60. Kh2 {[%emt 0:00:04]} Rc7 {[%emt 0:00:40]} 61. Rb1 {[%emt 0:00:32]} Kb3 {[%emt 0:00:10]} 62. Rfd1 {[%emt 0:00:09]} Rc2 {[%emt 0:00:30]} 63. Kg2 {[%emt 0:00:30]} Ka2 {[%emt 0:00:30]} 64. Kf2 {[%emt 0:00:30]} Rc3 {[%emt 0:00:30]} 65. Kg2 {[%emt 0:00:30]} Rd3 {[%emt 0:00:30]} 66. h4 {[%emt 0:00:30]} Kb3 {[%emt 0:00:30]} 67. Kf2 {[%emt 0:00:30]} Kc3 {[%emt 0:00:30]} 68. h5 {[%emt 0:00:30]} Rd6 {[%emt 0:00:30]} 69. Ke3 {[%emt 0:00:30]} Re6+ {[%emt 0:00:30]} 70. Kf4 {[%emt 0:00:30]} Kc2 {[%emt 0:00:30]} 71. Rh1 {[%emt 0:00:30]} Rd6 {[%emt 0:00:30]} 72. Rhd1 {[%emt 0:00:30]} Rd5 {[%emt 0:00:30]} 73. Kg4 {[%emt 0:00:30]} Rd4+ {[%emt 0:00:30]} 74. Kg3 {[%emt 0:00:30]} Rd5 {[%emt 0:00:30]} 75. Kg4 {[%emt 0:00:30]} Rd4+ {[%emt 0:00:30]} 1/2-1/2

[Event "XIII Mediterranean Championship 2023"]
[Site "Castell-Platja d Aro"]
[Date "2023.11.09"]
[Round "7.4"]
[White "Garcia Ramos, Daniel"]
[Black "Narciso Dublan, Marc"]
[Result "0-1"]
[ECO "B12"]
[WhiteElo "2455"]
[BlackElo "2401"]
[Annotator "RC"]
[PlyCount "86"]
[EventDate "2023.10.26"]
[EventType "swiss"]
[EventCountry "ESP"]
[SourceTitle "playchess.com"]
[Source "ChessBase"]
[SourceQuality "1"]
[TimeControl "5400+30"]

1. e4 {[%emt 0:02:13]} c6 {[%emt 0:00:28]} 2. d4 {[%emt 0:00:26]} d5 {[%emt 0:00:07]} 3. e5 {[%emt 0:00:43]} c5 {[%emt 0:00:15]} 4. dxc5 {[%emt 0:00:23]} e6 {[%emt 0:00:12]} 5. a3 {[%emt 0:01:01]} Bxc5 {[%emt 0:00:23]} 6. Qg4 {[%emt 0:03:10]} Ne7 {[%emt 0:00:11]} 7. Nf3 {[%emt 0:00:27]} O-O {[%emt 0:03:24]} 8. Bd3 {[%emt 0:04:14]} f5 {[%emt 0:00:09]} 9. exf6 {[%emt 0:06:49]} Rxf6 {[%emt 0:00:08]} 10. Qh5 {[%emt 0:00:44]} g6 {[%emt 0:17:09]} 11. Qh4 {[%emt 0:05:39]} Rf7 {[%emt 0:05:12]} 12. O-O {[%emt 0:06:52]} Nbc6 {[%emt 0:01:38]} 13. c4 {[%emt 0:12:18]} Bd7 {[%emt 0:15:04]} 14. Nc3 {[%emt 0:06:59]} Rxf3 {[%emt 0:07:57]} 15. gxf3 {[%emt 0:00:28]} Nd4 {[%emt 0:00:16]} 16. Kg2 {[%emt 0:25:56]} Qf8 {[%emt 0:02:07]} 17. Qf4 {[%emt 0:01:48]} Nef5 {[%emt 0:25:01]} 18. Bxf5 {[%emt 0:00:52]} Nxf5 {[%emt 0:00:07]} 19. Re1 {[%emt 0:06:09]} Qf7 {[%emt 0:04:56]} 20. Re5 {[%emt 0:02:27]} Rf8 {[%emt 0:05:00]} 21. Bd2 {[%emt 0:07:33]} Nh4+ {[%emt 0:03:12]} 22. Kg3 {[%emt 0:00:26]} Nxf3 {[%emt 0:00:46]} 23. Qxf7+ {[%emt 0:01:15]} Rxf7 {[%emt 0:00:04]} 24. Re2 {[%emt 0:00:26]} Nd4 {[%emt 0:00:31]} 25. Rae1 {[%emt 0:02:35]} Nxe2+ {[%emt 0:01:29]} 26. Rxe2 {[%emt 0:00:04]} Bc6 {[%emt 0:03:50]} 27. f4 {[%emt 0:01:02]} dxc4 {[%emt 0:01:15]} 28. Rxe6 {[%emt 0:00:32]} Rd7 {[%emt 0:00:16]} 29. Be3 {[%emt 0:00:57]} Rd3 {[%emt 0:01:07]} 30. Kf2 {[%emt 0:00:04]} Rd2+ {[%emt 0:02:15]} 31. Ne2 {[%emt 0:00:06]} Kf7 {[%emt 0:00:50]} 32. Re5 {[%emt 0:00:45]} Bxe3+ {[%emt 0:00:07]} 33. Kxe3 {[%emt 0:00:06]} Rxb2 {[%emt 0:00:05]} 34. Kd4 {[%emt 0:00:49]} Rb3 {[%emt 0:01:26]} 35. Kxc4 {[%emt 0:01:08]} Rxa3 {[%emt 0:00:05]} 36. Nd4 {[%emt 0:00:20]} Rh3 {[%emt 0:00:49]} 37. Re2 {[%emt 0:00:36]} Rh4 {[%emt 0:00:35]} 38. Rf2 {[%emt 0:00:34]} Kf6 {[%emt 0:00:04]} 39. f5 {[%emt 0:00:28]} g5 {[%emt 0:00:27]} 40. Re2 {[%emt 0:00:35]} Bb5+ {[%emt 0:00:21]} 41. Kxb5 {[%emt 0:00:10]} Rxd4 {[%emt 0:00:05]} 42. Kc5 {[%emt 0:00:39]} Rh4 {[%emt 0:00:40]} 43. Rf2 {[%emt 0:00:26]} Rf4 {[%emt 0:00:37]} 0-1

[Event "XIII Mediterranean Championship 2023"]
[Site "Castell-Platja d Aro"]
[Date "2023.11.09"]
[Round "7.5"]
[White "Ayats Llobera, Gerard"]
[Black "Vehi Bach, Victor Manuel"]
[Result "1-0"]
[ECO "E48"]
[WhiteElo "2442"]
[BlackElo "2216"]
[Annotator "RC"]
[PlyCount "69"]
[EventDate "2023.10.26"]
[EventType "swiss"]
[EventCountry "ESP"]
[SourceTitle "playchess.com"]
[Source "ChessBase"]
[SourceQuality "1"]
[TimeControl "5400+30"]

1. d4 {[%emt 0:03:46]} Nf6 {[%emt 0:00:26]} 2. c4 {[%emt 0:00:03]} e6 {[%emt 0:01:01]} 3. Nc3 {[%emt 0:00:06]} Bb4 {[%emt 0:00:19]} 4. e3 {[%emt 0:00:04]} O-O {[%emt 0:00:18]} 5. Bd3 {[%emt 0:00:06]} d5 {[%emt 0:00:45]} 6. cxd5 {[%emt 0:00:05]} exd5 {[%emt 0:00:07]} 7. Nge2 {[%emt 0:00:02]} c5 {[%emt 0:22:32]} 8. a3 {[%emt 0:00:58]} cxd4 {[%emt 0:00:15]} 9. axb4 {[%emt 0:04:58]} dxc3 {[%emt 0:00:14]} 10. Nxc3 {[%emt 0:00:40]} Nc6 {[%emt 0:12:28]} 11. b5 {[%emt 0:00:37]} Nb4 {[%emt 0:00:10]} 12. Bb1 {[%emt 0:06:19]} a5 {[%emt 0:01:15]} 13. bxa6 {[%emt 0:00:51]} Rxa6 {[%emt 0:04:27]} 14. Ra4 {[%emt 0:02:10]} Qe7 {[%emt 0:08:43]} 15. O-O {[%emt 0:02:58]} Bd7 {[%emt 0:01:01]} 16. Rxa6 {[%emt 0:01:42]} bxa6 {[%emt 0:00:13]} 17. Qd4 {[%emt 0:00:46]} Rc8 {[%emt 0:07:07]} 18. Bd2 {[%emt 0:02:48]} a5 {[%emt 0:01:00]} 19. f3 {[%emt 0:13:16]} Qc5 {[%emt 0:04:46]} 20. Ne2 {[%emt 0:04:34]} Qb5 {[%emt 0:10:51]} 21. Nc3 {[%emt 0:03:48]} Qc4 {[%emt 0:04:11]} 22. Qxc4 {[%emt 0:00:54]} Rxc4 {[%emt 0:00:21]} 23. Na2 {[%emt 0:03:32]} Nxa2 {[%emt 0:01:58]} 24. Bxa2 {[%emt 0:01:00]} Rc5 {[%emt 0:00:06]} 25. Bc3 {[%emt 0:01:22]} a4 {[%emt 0:13:28]} 26. Rd1 {[%emt 0:09:50]} Bc6 {[%emt 0:00:27]} 27. Bd4 {[%emt 0:00:06]} Rb5 {[%emt 0:03:02]} 28. Rc1 {[%emt 0:00:37]} Bb7 {[%emt 0:01:25]} 29. Rc7 {[%emt 0:00:39]} h5 {[%emt 0:00:15]} 30. Kf2 {[%emt 0:01:10]} Ne8 {[%emt 0:00:43]} 31. Rd7 {[%emt 0:00:06]} Nf6 {[%emt 0:01:01]} 32. Rd8+ {[%emt 0:00:11]} Kh7 {[%emt 0:00:00]} 33. Bb1+ {[%emt 0:00:06]} Kh6 {[%emt 0:00:51]} 34. Rh8+ {[%emt 0:00:39]} Kg5 {[%emt 0:00:07]} 35. g3 {[%emt 0:00:16]} 1-0

[Event "XIII Mediterranean Championship 2023"]
[Site "Castell-Platja d Aro"]
[Date "2023.11.09"]
[Round "7.6"]
[White "Jimenez Ruano, Adrian"]
[Black "Trepat Herranz, Joan"]
[Result "1/2-1/2"]
[ECO "E25"]
[WhiteElo "2281"]
[BlackElo "2385"]
[Annotator "RC"]
[PlyCount "38"]
[EventDate "2023.10.26"]
[EventType "swiss"]
[EventCountry "ESP"]
[SourceTitle "playchess.com"]
[Source "ChessBase"]
[SourceQuality "1"]
[TimeControl "5400+30"]

1. d4 {[%emt 0:07:28]} Nf6 {[%emt 0:00:12]} 2. c4 {[%emt 0:00:40]} e6 {[%emt 0:00:10]} 3. Nc3 {[%emt 0:00:08]} Bb4 {[%emt 0:00:11]} 4. f3 {[%emt 0:01:07]} d5 {[%emt 0:01:01]} 5. a3 {[%emt 0:00:05]} Bxc3+ {[%emt 0:00:32]} 6. bxc3 {[%emt 0:00:02]} c5 {[%emt 0:00:31]} 7. cxd5 {[%emt 0:00:08]} Nxd5 {[%emt 0:00:26]} 8. dxc5 {[%emt 0:00:10]} Qa5 {[%emt 0:00:54]} 9. e4 {[%emt 0:00:04]} Ne7 {[%emt 0:00:19]} 10. Be3 {[%emt 0:00:24]} O-O {[%emt 0:00:39]} 11. Qb3 {[%emt 0:02:35]} Qc7 {[%emt 0:00:23]} 12. a4 {[%emt 0:19:03]} Nec6 {[%emt 0:08:00]} 13. Bb5 {[%emt 0:21:58]} Na5 {[%emt 0:21:22]} 14. Qa3 {[%emt 0:05:43]} e5 {[%emt 0:14:54]} 15. Ne2 {[%emt 0:07:21]} Rd8 {[%emt 0:07:09]} 16. Ng3 {[%emt 0:00:46]} a6 {[%emt 0:05:16]} 17. Be2 {[%emt 0:00:21]} Be6 {[%emt 0:23:14]} 18. O-O {[%emt 0:00:20]} Nd7 {[%emt 0:03:09]} 19. Rab1 {[%emt 0:09:39]} Re8 {[%emt 0:11:38]} 1/2-1/2

[Event "XIII Mediterranean Championship 2023"]
[Site "Castell-Platja d Aro"]
[Date "2023.11.09"]
[Round "7.7"]
[White "Lacasa Diaz, Jose Antonio"]
[Black "Hernando Rodrigo, Julio Antonio"]
[Result "1-0"]
[ECO "C18"]
[WhiteElo "2353"]
[BlackElo "2202"]
[Annotator "RC"]
[PlyCount "105"]
[EventDate "2023.10.26"]
[EventType "swiss"]
[EventCountry "ESP"]
[SourceTitle "playchess.com"]
[Source "ChessBase"]
[SourceQuality "1"]
[TimeControl "5400+30"]

1. e4 {[%emt 0:00:06]} e6 {[%emt 0:14:54]} 2. d4 {[%emt 0:00:15]} d5 {[%emt 0:00:10]} 3. Nc3 {[%emt 0:00:10]} Bb4 {[%emt 0:00:17]} 4. e5 {[%emt 0:00:09]} c5 {[%emt 0:00:06]} 5. a3 {[%emt 0:00:15]} Bxc3+ {[%emt 0:00:16]} 6. bxc3 {[%emt 0:00:06]} Ne7 {[%emt 0:00:07]} 7. Qg4 {[%emt 0:00:12]} Nf5 {[%emt 0:00:15]} 8. Bd3 {[%emt 0:14:51]} h5 {[%emt 0:00:34]} 9. Qf4 {[%emt 0:03:10]} Qh4 {[%emt 0:00:20]} 10. Qxh4 {[%emt 0:08:43]} Nxh4 {[%emt 0:00:07]} 11. Bg5 {[%emt 0:03:18]} Nf5 {[%emt 0:00:51]} 12. Nf3 {[%emt 0:00:53]} cxd4 {[%emt 0:01:29]} 13. cxd4 {[%emt 0:00:34]} b6 {[%emt 0:02:16]} 14. a4 {[%emt 0:03:35]} Ba6 {[%emt 0:03:42]} 15. Bxf5 {[%emt 0:20:13]} exf5 {[%emt 0:00:06]} 16. a5 {[%emt 0:00:12]} bxa5 {[%emt 0:05:10]} 17. Rxa5 {[%emt 0:01:08]} Bc4 {[%emt 0:03:52]} 18. Rc5 {[%emt 0:17:45]} Na6 {[%emt 0:02:50]} 19. Rc6 {[%emt 0:02:02]} Nb4 {[%emt 0:11:47]} 20. Rd6 {[%emt 0:00:16]} Nxc2+ {[%emt 0:02:18]} 21. Kd2 {[%emt 0:00:07]} Na3 {[%emt 0:04:44]} 22. Ra1 {[%emt 0:01:07]} Nb5 {[%emt 0:00:43]} 23. Rda6 {[%emt 0:00:13]} Rb8 {[%emt 0:15:53]} 24. Ke3 {[%emt 0:04:37]} O-O {[%emt 0:29:43]} 25. Nd2 {[%emt 0:04:10]} f6 {[%emt 0:00:00]} 26. exf6 {[%emt 0:00:07]} Rbe8+ {[%emt 0:00:00]} 27. Kf4 {[%emt 0:00:20]} Nxd4 {[%emt 0:00:00]} 28. Nxc4 {[%emt 0:02:41]} dxc4 {[%emt 0:00:00]} 29. f3 {[%emt 0:01:14]} Rf7 {[%emt 0:01:32]} 30. Rxa7 {[%emt 0:08:33]} g6 {[%emt 0:00:06]} 31. Kg3 {[%emt 0:00:20]} f4+ {[%emt 0:00:44]} 32. Kh4 {[%emt 0:00:42]} Nf5+ {[%emt 0:01:05]} 33. Kh3 {[%emt 0:00:04]} c3 {[%emt 0:00:24]} 34. Rxf7 {[%emt 0:00:19]} Kxf7 {[%emt 0:00:02]} 35. Ra7+ {[%emt 0:00:18]} Ke6 {[%emt 0:00:02]} 36. Rc7 {[%emt 0:00:18]} Nd4 {[%emt 0:00:46]} 37. Rxc3 {[%emt 0:00:30]} Rf8 {[%emt 0:01:12]} 38. Ra3 {[%emt 0:03:07]} Kf5 {[%emt 0:00:31]} 39. Ra5+ {[%emt 0:00:05]} Ke6 {[%emt 0:00:03]} 40. Bxf4 {[%emt 0:00:08]} Rxf6 {[%emt 0:00:39]} 41. Ra6+ {[%emt 0:01:05]} Kf7 {[%emt 0:00:08]} 42. Rxf6+ {[%emt 0:00:02]} Kxf6 {[%emt 0:00:03]} 43. Bc1 {[%emt 0:00:24]} Ne2 {[%emt 0:00:55]} 44. Bb2+ {[%emt 0:00:05]} Kg5 {[%emt 0:00:23]} 45. g3 {[%emt 0:00:05]} Kf5 {[%emt 0:00:49]} 46. Kg2 {[%emt 0:00:06]} h4 {[%emt 0:01:03]} 47. Kf2 {[%emt 0:00:08]} hxg3+ {[%emt 0:00:21]} 48. hxg3 {[%emt 0:00:05]} Nxg3 {[%emt 0:00:38]} 49. Kxg3 {[%emt 0:00:10]} Kg5 {[%emt 0:00:11]} 50. Bc1+ {[%emt 0:00:20]} Kf5 {[%emt 0:00:48]} 51. Bd2 {[%emt 0:00:51]} Ke5 {[%emt 0:00:12]} 52. Kg4 {[%emt 0:00:10]} Kf6 {[%emt 0:00:25]} 53. Bc3+ {[%emt 0:00:11]} 1-0

[Event "XIII Mediterranean Championship 2023"]
[Site "Castell-Platja d Aro"]
[Date "2023.11.09"]
[Round "7.8"]
[White "Domene Mulyukov, Alexander"]
[Black "Masague Artero, Guerau"]
[Result "1-0"]
[ECO "B31"]
[WhiteElo "2198"]
[BlackElo "2305"]
[Annotator "RC"]
[PlyCount "99"]
[EventDate "2023.10.26"]
[EventType "swiss"]
[EventCountry "ESP"]
[SourceTitle "playchess.com"]
[Source "ChessBase"]
[SourceQuality "1"]
[TimeControl "5400+30"]

1. e4 {[%emt 0:05:41]} c5 {[%emt 0:00:14]} 2. Nf3 {[%emt 0:00:13]} Nc6 {[%emt 0:00:11]} 3. Bb5 {[%emt 0:00:09]} g6 {[%emt 0:00:08]} 4. O-O {[%emt 0:00:08]} Bg7 {[%emt 0:00:04]} 5. Re1 {[%emt 0:00:08]} Nf6 {[%emt 0:00:10]} 6. e5 {[%emt 0:00:13]} Nd5 {[%emt 0:01:32]} 7. Nc3 {[%emt 0:00:13]} Nc7 {[%emt 0:00:27]} 8. Bxc6 {[%emt 0:00:13]} dxc6 {[%emt 0:00:28]} 9. h3 {[%emt 0:00:10]} b6 {[%emt 0:04:51]} 10. d3 {[%emt 0:06:41]} Ne6 {[%emt 0:02:00]} 11. a4 {[%emt 0:00:42]} a5 {[%emt 0:00:38]} 12. Be3 {[%emt 0:03:47]} Nd4 {[%emt 0:03:30]} 13. Bf4 {[%emt 0:05:36]} h6 {[%emt 0:07:27]} 14. Ne4 {[%emt 0:12:42]} Be6 {[%emt 0:05:40]} 15. Nfd2 {[%emt 0:05:21]} g5 {[%emt 0:03:30]} 16. Bh2 {[%emt 0:00:50]} Qc7 {[%emt 0:00:41]} 17. Nf6+ {[%emt 0:04:41]} Kf8 {[%emt 0:05:09]} 18. Nh5 {[%emt 0:03:29]} Rd8 {[%emt 0:25:35]} 19. g4 {[%emt 0:24:52]} Qd7 {[%emt 0:11:10]} 20. c3 {[%emt 0:14:29]} Nf5 {[%emt 0:00:47]} 21. gxf5 {[%emt 0:00:26]} Bxf5 {[%emt 0:00:05]} 22. Nc4 {[%emt 0:01:12]} Bxh3 {[%emt 0:10:32]} 23. e6 {[%emt 0:09:29]} Bxe6 {[%emt 0:01:07]} 24. Nxb6 {[%emt 0:00:06]} Qe8 {[%emt 0:08:47]} 25. Nxg7 {[%emt 0:00:32]} Kxg7 {[%emt 0:00:05]} 26. Rxe6 {[%emt 0:00:23]} fxe6 {[%emt 0:00:11]} 27. Be5+ {[%emt 0:00:04]} Kg6 {[%emt 0:02:07]} 28. Bxh8 {[%emt 0:00:17]} Qxh8 {[%emt 0:00:04]} 29. Qe2 {[%emt 0:00:15]} Qf6 {[%emt 0:00:16]} 30. Re1 {[%emt 0:00:28]} Kf7 {[%emt 0:01:35]} 31. Qe4 {[%emt 0:01:17]} Qf5 {[%emt 0:02:19]} 32. Nc4 {[%emt 0:00:51]} Kf6 {[%emt 0:01:51]} 33. Re3 {[%emt 0:00:11]} g4 {[%emt 0:00:07]} 34. Qxf5+ {[%emt 0:00:48]} exf5 {[%emt 0:00:04]} 35. Nxa5 {[%emt 0:00:11]} f4 {[%emt 0:00:33]} 36. Re4 {[%emt 0:00:12]} Kf5 {[%emt 0:00:36]} 37. Nxc6 {[%emt 0:00:19]} Rxd3 {[%emt 0:00:05]} 38. Re5+ {[%emt 0:00:13]} Kf6 {[%emt 0:00:11]} 39. Re1 {[%emt 0:01:12]} h5 {[%emt 0:00:59]} 40. a5 {[%emt 0:01:46]} Rd6 {[%emt 0:03:14]} 41. Ne5 {[%emt 0:00:00]} f3 {[%emt 0:01:02]} 42. Nc4 {[%emt 0:00:00]} Rc6 {[%emt 0:00:39]} 43. Ra1 {[%emt 0:00:40]} Ra6 {[%emt 0:00:04]} 44. b4 {[%emt 0:00:27]} cxb4 {[%emt 0:00:03]} 45. cxb4 {[%emt 0:00:07]} Kf5 {[%emt 0:01:37]} 46. b5 {[%emt 0:00:10]} Ra8 {[%emt 0:00:00]} 47. b6 {[%emt 0:00:21]} Kf4 {[%emt 0:00:01]} 48. Nd2 {[%emt 0:00:59]} Rg8 {[%emt 0:01:30]} 49. Ra4+ {[%emt 0:00:16]} Kf5 {[%emt 0:00:08]} 50. Nf1 {[%emt 0:00:10]} 1-0